Cogmind - Beta 12 *** ADVENTURER MODE // 2023.10.22 @ 13:30:02 Player: EveningMars Result: Destroyed by Y-45 Defender with Beam Rifle Performance ------------- Evolutions (1) 500 Regions Visited (2) 400 Robots Destroyed (11) 55 Value Destroyed (302) 302 Prototype IDs (4) 80 Alien Tech Used (0) 0 Bonus (0) 0 TOTAL SCORE: 1337 Bonus ------- None Cogmind --------- Core Integrity 0/400 Matter 300/300 Energy 100/100 System Corruption 10% Temperature Cool (93) Movement Core (150) Ox2 Location -9/Materials Parts ------- > --- POWER (1) -------- (None) > --- PROPULSION (3) --- (None) > --- UTILITY (3) ------ Small Storage Unit > --- WEAPON (2) ------- Improved Assault Rifle > --- INVENTORY (8) ---- Shield Generator Assault Rifle Light Assault Rifle Peak State ------------ > --- POWER ------------ Ion Engine > --- PROPULSION ------- Wheel Wheel > --- UTILITY ---------- Small Storage Unit Terrain Scanner Terrain Scan Processor > --- WEAPON ----------- Particle Gun Mining Laser > --- INVENTORY -------- Light Ion Engine Shield Generator Medium Laser Particle Gun Assault Rifle Light Assault Rifle Improved Assault Rifle [Rating: 11] Favorites ----------- Power Ion Engine Engine Ion Engine Propulsion Wheel Wheel Wheel Utility Small Storage Unit Device Terrain Scanner Storage Small Storage Unit Processor Terrain Scan Processor Protection Light Armor Plating Weapon Particle Gun Energy Gun Particle Gun Ballistic Gun Assault Rifle Special Weapon Mining Laser Build | -11 -10 -9 ------- Run | Jun Mat Mat Slots Evolved 2 | . . 2 Power . | . . . Propulsion 1 | . . 1 Utility 1 | . . 1 Weapon . | . . . Parts Attached 18 | 6 4 8 Power 5 | 1 1 3 Engine 5 | 1 1 3 Core . | . . . Reactor . | . . . Propulsion 2 | 2 . . Treads . | . . . Leg . | . . . Wheel 2 | 2 . . Hover . | . . . Flight . | . . . Utility 4 | 1 1 2 Device 1 | . 1 . Storage 1 | 1 . . Processor 1 | . . 1 Hackware . | . . . Protection 1 | . . 1 Artifact . | . . . Weapon 7 | 2 2 3 Energy Gun 4 | 1 1 2 Energy Cannon . | . . . Ballistic Gun 2 | 1 . 1 Ballistic Cannon . | . . . Launcher . | . . . Special Weapon 1 | . 1 . Impact Weapon . | . . . Slashing Weapon . | . . . Piercing Weapon . | . . . Special Melee Weapon . | . . . Unidentified Prototypes . | . . . Parts Lost 12 | . 1 11 Power 3 | . 1 2 Propulsion 2 | . . 2 Utility 3 | . . 3 Weapon 4 | . . 4 Highest Loss Streak 5 | . 1 5 To Critical Strikes . | . . . Average Slot Usage (%) 71 | . 96 53 Engine 10 | . 13 8 Wheel 16 | . 28 8 Device 7 | . 11 5 Storage 12 | . 14 11 Processor 2 | . . 4 Energy Gun 10 | . 14 8 Ballistic Gun 5 | . 11 . Special Weapon 3 | . 2 5 Naked Turns . | . . . Heaviest Build 15 | 14 15 15 Greatest Support 20 | 20 20 20 Greatest Overweight (x) 4 | 3 . 4 Average Overweight (x) . | . . . Largest Inventory Capacity 8 | 8 8 8 Average Capacity 7 | 7 8 8 Most Carried 7 | 2 6 7 Average Carried 4 | 1 3 6 Final Capacity 8 | 8 8 8 Final Carried 6 | 2 6 3 Class Distribution -------------------- 100% | Mutant Dominant Class ---------------- Mutant | -10/Materials Mutant | -9/Materials Resources | -11 -10 -9 ----------- Run | Jun Mat Mat Matter Collected 405 | 230 83 92 Remotely . | . . . Salvage Created 347 | . 155 192 Parts 20 | . 7 13 Haulers Intercepted . | . . . Recyclers Shooed . | . . . Parts Field Recycled . | . . . Retrieved Matter . | . . . Parts Self-Destructed . | . . . Prevented . | . . . Kills | -11 -10 -9 ------- Run | Jun Mat Mat Combat Hostiles Destroyed 11 | . 5 6 Guns 11 | . 5 6 Classes Destroyed 3 | . 2 1 Swarmer 5 | . 2 3 Grunt 4 | . 3 1 Sentry 2 | . . 2 Best Kill Streak 6 | . 5 6 Combat Bots Only 6 | . 5 6 Max Kills in Single Turn 1 | . 1 1 Gunslinging . | . . . Exploded . | . . . Melee . | . . . Uniques/NPCs Destroyed . | . . . Combat | -11 -10 -9 -------- Run | Jun Mat Mat Damage Taken 1561 | . 305 1256 Core 485 | . 77 408 Absorbed by Shields . | . . . Core Remaining (%) 84 | 100 69 . Volleys Fired 40 | . 13 27 Largest 2 | . 2 2 Hottest 100 | . 100 100 Shots Fired 52 | . 24 28 Gun 45 | . 22 23 Cannon . | . . . Launcher . | . . . Special 7 | . 2 5 Kinetic 18 | . 11 7 Thermal 34 | . 13 21 Explosive . | . . . Electromagnetic . | . . . Robot Hit Streak 22 | . 19 22 Robot Miss Streak 1 | . . 1 Penetration Max . | . . . Secondary Targets . | . . . Shots Hit Robots 41 | . 19 22 Core Hits 18 | . 8 10 Critical Kills . | . . . Critical Parts Destroyed . | . . . Critical Strikes 2 | . . 2 Burn 2 | . . 2 Melee Attacks . | . . . Impact . | . . . Slashing . | . . . Piercing . | . . . Sneak Attacks . | . . . Combat Hostiles . | . . . Follow-up Attacks . | . . . Damage Inflicted 567 | . 251 316 Guns 555 | . 239 316 Cannons . | . . . Explosions . | . . . Melee . | . . . Ramming 12 | . 12 . Kinetic 207 | . 103 104 Thermal 348 | . 136 212 Explosive . | . . . Electromagnetic . | . . . Impact . | . . . Slashing . | . . . Piercing . | . . . Highest Corruption 10 | . 1 10 Average Corruption 5 | . 1 10 Corruption Purged . | . . . Corruption Blocked . | . . . Effects 7 | . 2 5 Message Errors 1 | . 1 . Heat Flow Errors 1 | . . 1 Energy Discharges 1 | . . 1 Parts Rejected 1 | . . 1 Data Loss (minor) 2 | . 1 1 Data Loss (major) 1 | . . 1 Overload Shots . | . . . Overflow Damage . | . . . Projectiles . | . . . Explosions . | . . . Melee . | . . . Knockbacks 1 | . 1 . Impact 1 | . 1 . Kinetic . | . . . Secondary . | . . . Self-Inflicted Damage 6 | . 6 . Shots . | . . . Rammed 1 | . 1 . Targets Rammed 1 | . 1 . Kicked . | . . . Crushed . | . . . Highest Temperature 161 | . 143 161 Average Temperature 59 | . 63 56 Received Heat Transfer 573 | . 171 402 Siege Activations . | . . . Robots Corrupted . | . . . Combat Hostiles . | . . . Parts Fried . | . . . Impact Corruptions . | . . . Robots Melted . | . . . Combat Hostiles . | . . . Parts Melted 3 | . 1 2 Heat Transferred 1110 | . 407 703 Parts Sabotaged . | . . . Parts Stolen . | . . . Parts Stripped . | . . . Power Chain Reactions . | . . . Missiles Intercepted . | . . . Alert | -11 -10 -9 ------- Run | Jun Mat Mat Peak Influence 175 | . 112 175 Initial 40 | . . 40 Average 42 | . 47 48 Maximum Alert Level . | . . . Low Security (%) 100 | 100 100 100 Level 1 . | . . . Level 2 . | . . . Level 3 . | . . . Level 4 . | . . . Level 5 . | . . . High Security . | . . . Max Security . | . . . Squads Dispatched 1 | . . 1 Investigation 1 | . . 1 Extermination . | . . . Reinforcement . | . . . Assault . | . . . Garrison . | . . . Intercept . | . . . Searches Triggered . | . . . Construction Impeded . | . . . Haulers Reinforced . | . . . Active Scanning Responses . | . . . Cargo Convoy Interrupts . | . . . Stealth | -11 -10 -9 --------- Run | Jun Mat Mat Distress Signals 1 | . 1 . Communications Jammed . | . . . Distress Signals . | . . . Times Spotted 21 | . 7 14 Peak Tracking Total 8 | . 6 8 Tactical Retreats 2 | . . 2 Traps | -11 -10 -9 ------- Run | Jun Mat Mat Traps Triggered . | . . . Indirectly . | . . . Trap Hack Attempts . | . . . Triggered . | . . . Disarmed . | . . . Reprogrammed . | . . . Reused . | . . . Traps Extracted . | . . . Installed . | . . . Triggered . | . . . Machines | -11 -10 -9 ---------- Run | Jun Mat Mat Machines Disabled . | . . . Max in Single Turn . | . . . Machines Repaired . | . . . Machines Sabotaged . | . . . Overloaded Fab Kills . | . . . Hacking | -11 -10 -9 --------- Run | Jun Mat Mat Machines Accessed 7 | . 5 2 Terminals 6 | . 4 2 Fabricators . | . . . Repair Stations 1 | . 1 . Recycling Units . | . . . Scanalyzers . | . . . Garrison Access . | . . . Total Hacks 14 | . 11 3 Successful 9 | . 8 1 Failed 5 | . 3 2 Catastrophic . | . . . Database Lockouts . | . . . Manual . | . . . Terminals 13 | . 10 3 Fabricators . | . . . Repair Stations 1 | . 1 . Recycling Units . | . . . Scanalyzers . | . . . Garrison Access . | . . . Terminal Hacks 8 | . 7 1 Record 3 | . 3 . Prototype ID Bank 2 | . 1 1 Alert Level 1 | . 1 . Zone Layout 2 | . 2 . Fabricator Hacks . | . . . Repair Station Hacks 1 | . 1 . Scan Component 1 | . 1 . Recycling Unit Hacks . | . . . Scanalyzer . | . . . Garrison Access Hacks . | . . . Unauthorized Hacks . | . . . Terminals . | . . . Fabricators . | . . . Repair Stations . | . . . Recycling Units . | . . . Scanalyzers . | . . . Garrison Access . | . . . Data Cores Recovered . | . . . Used . | . . . Hacking Detections 4 | . 3 1 Full Trace Events 2 | . 1 1 Feedback Events . | . . . Feedback Blocked . | . . . Robot Schematics Acquired . | . . . Robots Built . | . . . Authchips . | . . . Time . | . . . Total Robot Build Rating . | . . . Part Schematics Acquired . | . . . Parts Built . | . . . Authchips . | . . . Time . | . . . Total Part Build Rating . | . . . Parts Repaired . | . . . Time . | . . . Parts Recycled . | . . . Recycled Matter . | . . . Retrieved Matter . | . . . Retrieved Components . | . . . Parts Scanalyzed . | . . . Part Schematics Acquired . | . . . Parts Damaged . | . . . Bothacking | -11 -10 -9 ------------ Run | Jun Mat Mat Used RIF Installer . | . . . Robots Hacked . | . . . Non-combat . | . . . Combat . | . . . Robot Hacks Applied . | . . . Relay Couplers Released . | . . . Fabnet Peak Effective % . | . . . Robots Rewired . | . . . Allies Hacked . | . . . Hacks Repelled . | . . . Allies | -11 -10 -9 -------- Run | Jun Mat Mat Total Allies . | . . . Largest Group . | . . . Highest-Rated Group . | . . . Highest-Rated Ally . | . . . Total Orders . | . . . Ally Attacks . | . . . Total Damage . | . . . Kills . | . . . Allies Corrupted . | . . . Allies Melted . | . . . Intel | -11 -10 -9 ------- Run | Jun Mat Mat Robot Analysis Total . | . . . Derelict Logs Recovered . | . . . Drone Launches . | . . . Drone Recoveries . | . . . Exploration | -11 -10 -9 ------------- Run | Jun Mat Mat Turns Passed 461 | 49 176 236 Spaces Moved 335 | 45 147 143 Core 54 | 6 . 48 Treads . | . . . Legs . | . . . Wheels 281 | 39 147 95 Hover . | . . . Flight . | . . . Fastest Speed 50 | 50 80 80 Average Speed 93 | 84 80 109 Slowest Speed 250 | 200 80 250 Overloaded Moves . | . . . Propulsion Burnouts . | . . . Robots Hopped . | . . . Cave-ins Triggered 1 | . . 1 Exploration Rate (%) 13 | 3 23 13 Regions Visited 2 Branch Regions . Pre-discovered Areas . | . . . Known Exits Taken . | . . . Unknown Exits Taken 2 | 1 1 . Scrap Searched . | . . . Spaces Dug 7 | . 2 5 Terrain Destroyed 7 | . 2 5 Melee . | . . . Projectile 7 | . 2 5 AOE . | . . . Terrain Rammed . | . . . Walls Destroyed . | . . . Machines Disabled . | . . . Actions | -11 -10 -9 --------- Run | Jun Mat Mat Total 410 | 52 175 183 Wait 8 | . 8 . Move 333 | 44 146 143 Hop . | . . . Pick Up 8 | 2 3 3 Fast Attach 11 | 6 2 3 Attach 4 | . . 4 Detach . | . . . Swap 3 | . 2 1 Drop 2 | . . 2 Fire 40 | . 13 27 Melee . | . . . Ram 1 | . 1 . Kick . | . . . Crush . | . . . Escape Stasis . | . . . Rewire . | . . . Trap . | . . . Miscellaneous . | . . . Route ------- -11/Junkyard -10/Materials -9/Materials History --------- Turn | Location | Event 21 | -11/Junkyard | Discovered new exit (range 16) 50 | -11/Junkyard | Entered Materials 214 | -10/Materials | Discovered new exit (range 6) 226 | -10/Materials | Entered another Materials area 226 | -9/Materials | Evolved 2 slots: Propulsion x1, Utility x1 312 | -9/Materials | Build established: Mutant 330 | -9/Materials | Crushed by falling debris 330 | -9/Materials | System corruption reached 10% 361 | -9/Materials | Lost 5 parts (2n2u1w) 421 | -9/Materials | Core integrity fell below 50% 448 | -9/Materials | Core integrity fell below 20% 462 | -9/Materials | Destroyed by Y-45 Defender with Beam Rifle Last Messages --------------- 00427_ S-10 Pest suffers critical hit (Burn). 00427_ S-10 Pest destroyed. 00430_ Critical hit (Burn: +37). 00432_ S-10 Pest destroyed. 00432_ Acquired Imp. Ion Engine. 00434_ System corrupted: Component data lost. 00436_ Acquired Lgt. Armor Plating. 00442_ Particle Gun melted. 00442_ G-47 Trooper destroyed. 00444_ Electrolysis Chamber disabled. 00446_ R-06 Scavenger collects Heat Sink. 00447_ Particle Gun destroyed. 00450_ R-06 Scavenger collects Lgt. Assault Rifle. 00451_ Lgt. Armor Plating destroyed. 00453_ Critical hit (Burn: +37). 00454_ Y-45 Defender destroyed. 00456_ Acquired 35 matter. 00459_ Acquired 3 matter. 00461_ Acquired 1 matter. 00461_ Imp. Ion Engine destroyed. Map ----- +----------------------------------------------------+ | ????????????????????????????? | | ????????????????????????????? | | ????????????????????????????? | | ????????????????????????????? | | ????????????????????????????? | | ????????????????????????????? | | ?????????????????? ???????? | | ????????????????? ???????? | | ????????????????? ???????? | | ?????????????????# ???????? | | ?????????????????# ???????? | | ?????????????????# #??????? | | ?????????????????# #??????? | | ?????????????????# #??????? | | ?????????????????# #??????? | | ?????????????????# ####+### | | ?????????????????# # # | | ?????????????????# # """ # | | ?????????????????#" # """ # | | ?????????????????#%" # """ # | | ?????????????????#" # # | | ?????????????????# #%"""[=# | | ###??????????????# + """YY# | | ?????????????+ # "" = # | | "" [?#######?????# # gg[= # | | "" | # ####### #"""@%!# | | "" # * #"T[=! # | | + #"""% # | | " " # # # | | "Y" # ################## | | """?## ##??????????#?????? | | ??# #??????????????#??? | | ###??## #???####?????#????? | | ????#?# #?##??#???????????? | | #?????# #?#???????###?????? | | ???#??# ###?#???? #?###???? | | ?#????# ######## ?#??#??#?? | | ????### ## ?????#??#?? | | #?#??## ## #?#?#??#??#? | | ????### #### #######??#???? | | ??#?### #?#?##??? | | ?#?#?## ##???###? | | ?#??##" ##??#??#? | | ?#??#####+## ][ #?????#?? | | ##??# # ] #?#????#? | | ???## #* ##?#####? | | #?### /! ######### | | ??#?# # [% # # | | #???# # [[ # T # | | ?##?# # [[ # # | +----------------------------------------------------+ Best States ------------- Heat Dissipation 28 Energy Generation 12 Energy Capacity 265 Matter Stores 300 Matter Capacity 300 Sight Range 16 Terrain Scan Range 14 Terrain Scan Density 85 Armor Coverage 150 Resistance: KI 20 Resistance: TH 20 Resistance: EX 20 Resistance: EM 20 Resistance: I 20 Resistance: S 20 Resistance: P 20 Evasion (%) 44 Offensive Hacking 10 Item Schematics ----------------- None Robot Schematics ------------------ None Fabricated ------------ Nothing Alien Tech Used ----------------- None Achievements -------------- None Challenges ------------ None Game ------ Seed BoreMiniSpecial Manual? 0 Play Time 00:09:51 Cumulative 19.1 hours Start 2023.10.22 @ 13:23:19 End 2023.10.22 @ 13:30:02 Sessions 1 Manual Loads 0 Difficulty Adventurer Special Mode None Game No. 55 Rogue 32 Adventurer 23 Explorer 0 Win Type - Total 0 Types 0/0/0/0/0/0/0/0/0 Lore% 24 Gallery% 34 Achievement% 22 Wizard Run 0 Options --------- ASCII 0 Keyboard 1 Movement Numpad Keybinds 0 Fullscreen 2 Font 18/X11 Map View 76x50 Tactical HUD 1 Map Filters NONE Filters NONE Steam 1 RUN: e8b898ce-6d37-4905-93ec-ed4241813ad9